{"text_format":"3","workbook":"xlsx","n_sheets":1,"sheets":["व्यय रिपोर्ट"],"not_rendered":{"images":1,"defined_names":6},"read":"whole","date_system":"1900"}

{"sheet":"व्यय रिपोर्ट","index":0,"n_rows":27,"n_cols":14,"rows_kept":27,"merged":[[9,10,10,10]]}
[" व्यय रिपोर्ट"]
[null,"CONTOSO, LTD"]
[null,"123 दक्षिण मुख्य गली, North Buffalo, NY 12345"]
[null,"फ़ोन","425.555.0121",null,"नाम","Kim Abercrombie",null,null,"उद्देश्य","वार्षिक विक्रय सेमीनार",null,"माइलेज दर",{"v":0.5,"d":"रु0.50/मील"}]
[null,"फ़ैक्स","425.555.0122",null,"विभाग","विक्रय",null,null,"आरंभ","2012-12-01",null,"भोजन दर",{"v":30,"d":"रु30.00/दिन"}]
[null,"ईमेल","info@contoso.com",null,"स्थिति","प्रबंध निदेशक",null,null,"समाप्ति","2012-12-05",null,"होटल दर",{"v":200,"d":"रु200.00/रात"}]
[null,"वेब","www.contoso.com",null,"प्रबंधक","Michael Tucker",null,null,"इसके द्वारा तैयार किया गया","Kim Abercrombie",null,"फ़ोन दर",{"v":10,"d":"रु10.00/दिन"}]
[{"$nulls":8},"इसके द्वारा अनुमोदित किया गया","Michael Tucker",null,"विविध दर",{"v":50,"d":"रु50.00/दिन"}]
[]
[{"$nulls":10},"ऑडोमीटर",null,null," "]
[{"$nulls":13}," "]
[]
[null,"दिनांक","खाता","वर्णन","होटल","परिवहन","भोजन","फ़ोन","विविध","प्रारंभ","समाप्त","कुल","कुल "]
[null,"2012-12-01","विक्रय","माइलेज",{"$nulls":5},{"v":11378.5,"d":"11,378.5 mi."},{"v":11456.2,"d":"11,456.2 mi."},{"$f":"IF(COUNTA(tblExpenses[[#This Row],[प्रारंभ]:[समाप्त]])=2,(tblExpenses[[#This Row],[समाप्त]]-tblExpenses[[#This Row],[प्रारंभ]])*MileageRate,\"\")","v":{"v":38.850000000000364,"d":"रु 38.85"}},{"$f":"IF(COUNTA(tblExpenses[[#This Row],[दिनांक]:[समाप्त]])=0,\"\",SUM(tblExpenses[[#This Row],[होटल]:[परिवहन]],tblExpenses[[#This Row],[भोजन]:[विविध]],((tblExpenses[[#This Row],[समाप्त]]-tblExpenses[[#This Row],[प्रारंभ]])*(MileageRate))))","v":{"v":38.850000000000364,"d":"रु 38.85"}}]
[null,"2012-12-02","विक्रय","कन्वेंशन",{"v":445,"d":"रु 445.00"},{"v":225,"d":"रु 225.00"},{"v":20,"d":"रु 20.00"},null,{"v":5,"d":"रु 5.00"},null,null,{"$f":"IF(COUNTA(tblExpenses[[#This Row],[प्रारंभ]:[समाप्त]])=2,(tblExpenses[[#This Row],[समाप्त]]-tblExpenses[[#This Row],[प्रारंभ]])*MileageRate,\"\")","v":""},{"$f":"IF(COUNTA(tblExpenses[[#This Row],[दिनांक]:[समाप्त]])=0,\"\",SUM(tblExpenses[[#This Row],[होटल]:[परिवहन]],tblExpenses[[#This Row],[भोजन]:[विविध]],((tblExpenses[[#This Row],[समाप्त]]-tblExpenses[[#This Row],[प्रारंभ]])*(MileageRate))))","v":{"v":695,"d":"रु 695.00"}}]
[{"$nulls":11},{"$f":"IF(COUNTA(tblExpenses[[#This Row],[प्रारंभ]:[समाप्त]])=2,(tblExpenses[[#This Row],[समाप्त]]-tblExpenses[[#This Row],[प्रारंभ]])*MileageRate,\"\")","v":""},{"$f":"IF(COUNTA(tblExpenses[[#This Row],[दिनांक]:[समाप्त]])=0,\"\",SUM(tblExpenses[[#This Row],[होटल]:[परिवहन]],tblExpenses[[#This Row],[भोजन]:[विविध]],((tblExpenses[[#This Row],[समाप्त]]-tblExpenses[[#This Row],[प्रारंभ]])*(MileageRate))))","v":""}]
[{"$nulls":11},{"$f":"IF(COUNTA(tblExpenses[[#This Row],[प्रारंभ]:[समाप्त]])=2,(tblExpenses[[#This Row],[समाप्त]]-tblExpenses[[#This Row],[प्रारंभ]])*MileageRate,\"\")","v":""},{"$f":"IF(COUNTA(tblExpenses[[#This Row],[दिनांक]:[समाप्त]])=0,\"\",SUM(tblExpenses[[#This Row],[होटल]:[परिवहन]],tblExpenses[[#This Row],[भोजन]:[विविध]],((tblExpenses[[#This Row],[समाप्त]]-tblExpenses[[#This Row],[प्रारंभ]])*(MileageRate))))","v":""}]
[{"$nulls":11},{"$f":"IF(COUNTA(tblExpenses[[#This Row],[प्रारंभ]:[समाप्त]])=2,(tblExpenses[[#This Row],[समाप्त]]-tblExpenses[[#This Row],[प्रारंभ]])*MileageRate,\"\")","v":""},{"$f":"IF(COUNTA(tblExpenses[[#This Row],[दिनांक]:[समाप्त]])=0,\"\",SUM(tblExpenses[[#This Row],[होटल]:[परिवहन]],tblExpenses[[#This Row],[भोजन]:[विविध]],((tblExpenses[[#This Row],[समाप्त]]-tblExpenses[[#This Row],[प्रारंभ]])*(MileageRate))))","v":""}]
[{"$nulls":11},{"$f":"IF(COUNTA(tblExpenses[[#This Row],[प्रारंभ]:[समाप्त]])=2,(tblExpenses[[#This Row],[समाप्त]]-tblExpenses[[#This Row],[प्रारंभ]])*MileageRate,\"\")","v":""},{"$f":"IF(COUNTA(tblExpenses[[#This Row],[दिनांक]:[समाप्त]])=0,\"\",SUM(tblExpenses[[#This Row],[होटल]:[परिवहन]],tblExpenses[[#This Row],[भोजन]:[विविध]],((tblExpenses[[#This Row],[समाप्त]]-tblExpenses[[#This Row],[प्रारंभ]])*(MileageRate))))","v":""}]
[{"$nulls":11},{"$f":"IF(COUNTA(tblExpenses[[#This Row],[प्रारंभ]:[समाप्त]])=2,(tblExpenses[[#This Row],[समाप्त]]-tblExpenses[[#This Row],[प्रारंभ]])*MileageRate,\"\")","v":""},{"$f":"IF(COUNTA(tblExpenses[[#This Row],[दिनांक]:[समाप्त]])=0,\"\",SUM(tblExpenses[[#This Row],[होटल]:[परिवहन]],tblExpenses[[#This Row],[भोजन]:[विविध]],((tblExpenses[[#This Row],[समाप्त]]-tblExpenses[[#This Row],[प्रारंभ]])*(MileageRate))))","v":""}]
[{"$nulls":11},{"$f":"IF(COUNTA(tblExpenses[[#This Row],[प्रारंभ]:[समाप्त]])=2,(tblExpenses[[#This Row],[समाप्त]]-tblExpenses[[#This Row],[प्रारंभ]])*MileageRate,\"\")","v":""},{"$f":"IF(COUNTA(tblExpenses[[#This Row],[दिनांक]:[समाप्त]])=0,\"\",SUM(tblExpenses[[#This Row],[होटल]:[परिवहन]],tblExpenses[[#This Row],[भोजन]:[विविध]],((tblExpenses[[#This Row],[समाप्त]]-tblExpenses[[#This Row],[प्रारंभ]])*(MileageRate))))","v":""}]
[{"$nulls":11},{"$f":"IF(COUNTA(tblExpenses[[#This Row],[प्रारंभ]:[समाप्त]])=2,(tblExpenses[[#This Row],[समाप्त]]-tblExpenses[[#This Row],[प्रारंभ]])*MileageRate,\"\")","v":""},{"$f":"IF(COUNTA(tblExpenses[[#This Row],[दिनांक]:[समाप्त]])=0,\"\",SUM(tblExpenses[[#This Row],[होटल]:[परिवहन]],tblExpenses[[#This Row],[भोजन]:[विविध]],((tblExpenses[[#This Row],[समाप्त]]-tblExpenses[[#This Row],[प्रारंभ]])*(MileageRate))))","v":""}]
[{"$nulls":11},{"$f":"IF(COUNTA(tblExpenses[[#This Row],[प्रारंभ]:[समाप्त]])=2,(tblExpenses[[#This Row],[समाप्त]]-tblExpenses[[#This Row],[प्रारंभ]])*MileageRate,\"\")","v":""},{"$f":"IF(COUNTA(tblExpenses[[#This Row],[दिनांक]:[समाप्त]])=0,\"\",SUM(tblExpenses[[#This Row],[होटल]:[परिवहन]],tblExpenses[[#This Row],[भोजन]:[विविध]],((tblExpenses[[#This Row],[समाप्त]]-tblExpenses[[#This Row],[प्रारंभ]])*(MileageRate))))","v":""}]
[{"$nulls":11},{"$f":"IF(COUNTA(tblExpenses[[#This Row],[प्रारंभ]:[समाप्त]])=2,(tblExpenses[[#This Row],[समाप्त]]-tblExpenses[[#This Row],[प्रारंभ]])*MileageRate,\"\")","v":""},{"$f":"IF(COUNTA(tblExpenses[[#This Row],[दिनांक]:[समाप्त]])=0,\"\",SUM(tblExpenses[[#This Row],[होटल]:[परिवहन]],tblExpenses[[#This Row],[भोजन]:[विविध]],((tblExpenses[[#This Row],[समाप्त]]-tblExpenses[[#This Row],[प्रारंभ]])*(MileageRate))))","v":""}]
[null,"कुल",null,null,{"$f":"SUBTOTAL(109,tblExpenses[होटल])","v":{"v":445,"d":"रु 445.00"}},{"$f":"SUBTOTAL(109,tblExpenses[परिवहन])","v":{"v":225,"d":"रु 225.00"}},{"$f":"SUBTOTAL(109,tblExpenses[भोजन])","v":{"v":20,"d":"रु 20.00"}},{"$f":"SUBTOTAL(109,tblExpenses[फ़ोन])","v":{"v":0,"d":"रु 0.00"}},{"$f":"SUBTOTAL(109,tblExpenses[विविध])","v":{"v":5,"d":"रु 5.00"}},{"$nulls":3},{"$f":"SUBTOTAL(109,tblExpenses[[कुल ]])","v":{"v":733.8500000000004,"d":"रु 733.85"}}]
[{"$nulls":11},"अग्रिम",{"v":0,"d":"रु 0.00"}]
[{"$nulls":11},"कुल",{"$f":"tblExpenses[[#Totals],[कुल ]]-Advances","v":{"v":733.8500000000004,"d":"रु 733.85"}}]